[Event "Sardinia World Festival-A 2024"]
[Site "Orosei"]
[Date "2024.04.30"]
[Round "5.10"]
[White "Kanov, Nikola"]
[Black "Lagarde, Maxime"]
[Result "1/2-1/2"]
[ECO "C02"]
[WhiteElo "2423"]
[BlackElo "2640"]
[Annotator "TA"]
[PlyCount "157"]
[EventDate "2024.04.26"]
[EventType "swiss"]
[EventCountry "ITA"]
[SourceTitle "playchess.com"]
[Source "ChessBase"]
[SourceQuality "1"]
[TimeControl "40/5400+30:1800+30"]

{[%evp 59,157,-8,-8,-8,-12,-8,0,0,0,0,0,0,0,0,0,-2,-2,-2,-2,-2,-2,-2,-2,-2,-2,-82,-82,-82,-82,-82,-82,-82,-82,-124,-82,-82,-82,-82,-82,-82,-2,-82,-82,-82,-82,-82,-82,-82,-82,-82,-82,-82,-82,-82,-82,-82,0,-82,-82,-89,-82,-89,-89,-89,0,0,0,-104,-104,-104,-104,-104,0,-89,0,0,0,0,0,0,0,0,0,0,0,0,0,0,0,0,0,0,0,0,0,0,0,0,0,-29993]} 1. e4 {[%emt 0:00:01]} e6 {[%emt 0:01:21]} 2. d4 {[%emt 0:00:24]} d5 {[%emt 0:00:04]} 3. e5 {[%emt 0:00:58]} c5 {[%emt 0:00:04]} 4. c3 {[%emt 0:00:09]} Nc6 {[%emt 0:00:07]} 5. Nf3 {[%emt 0:00:11]} Nge7 {[%emt 0:00:04]} 6. Na3 {[%emt 0:01:20]} Bd7 {[%emt 0:00:22]} 7. Nc2 {[%emt 0:00:59]} Qa5 {[%emt 0:00:10]} 8. dxc5 {[%emt 0:04:32]} Ng6 {[%emt 0:00:19]} 9. b4 {[%emt 0:03:34]} Qc7 {[%emt 0:00:05]} 10. Be2 {[%emt 0:01:20]} Ncxe5 {[%emt 0:03:28]} 11. O-O {[%emt 0:06:13]} Nxf3+ {[%emt 0:11:44]} 12. Bxf3 {[%emt 0:00:10]} Be7 {[%emt 0:00:57]} 13. c4 {[%emt 0:17:40]} dxc4 {[%emt 0:00:38]} 14. Bb2 {[%emt 0:01:14]} Rd8 {[%emt 0:10:42]} 15. Qe2 {[%emt 0:07:11]} b6 {[%emt 0:07:49]} 16. Qxc4 {[%emt 0:13:06]} bxc5 {[%emt 0:01:11]} 17. bxc5 {[%emt 0:03:03]} Qxc5 {[%emt 0:08:03]} 18. Qxc5 {[%emt 0:01:36]} Bxc5 {[%emt 0:00:05]} 19. Bxg7 {[%emt 0:00:55]} Rg8 {[%emt 0:00:04]} 20. Bf6 {[%emt 0:04:43]} Be7 {[%emt 0:00:13]} 21. Bxe7 {[%emt 0:00:40]} Kxe7 {[%emt 0:01:03]} 22. g3 {[%emt 0:05:19]} Ne5 {[%emt 0:02:07]} 23. Bg2 {[%emt 0:01:30]} Ba4 {[%emt 0:00:18]} 24. Ne3 {[%emt 0:02:16]} Rd2 {[%emt 0:00:49]} 25. f4 {[%emt 0:04:47]} Nd3 {[%emt 0:02:18]} 26. Rab1 {[%emt 0:09:22]} Rd8 {[%emt 0:03:42]} 27. a3 {[%emt 0:00:48]} f5 {[%emt 0:05:26]} 28. Rb7+ {[%emt 0:02:32]} Rd7 {[%emt 0:00:32]} 29. Rxd7+ {[%emt 0:02:38]} Kxd7 {[%emt 0:00:56]} 30. Nc4 {[%emt 0:00:35]} Rc2 {[%emt 0:00:48]} 31. Ne5+ {[%emt 0:01:01]} Nxe5 {[%emt 0:00:07]} 32. fxe5 {[%emt 0:00:06]} Bc6 {[%emt 0:05:11]} 33. Rd1+ {[%emt 0:03:37]} Kc7 {[%emt 0:00:05]} 34. Bxc6 {[%emt 0:00:24]} Rxc6 {[%emt 0:00:04]} 35. Rd4 {[%emt 0:00:23]} Ra6 {[%emt 0:00:14]} 36. a4 {[%emt 0:01:38]} Ra5 {[%emt 0:00:04]} 37. Rh4 {[%emt 0:00:38]} Kc6 {[%emt 0:00:06]} 38. Rxh7 {[%emt 0:00:29]} Rxa4 {[%emt 0:01:10]} 39. h4 {[%emt 0:01:14]} Kd5 {[%emt 0:02:31]} 40. h5 {[%emt 0:00:22]} Kxe5 {[%emt 0:01:41]} 41. h6 {[%emt 0:02:30]} Rg4 {[%emt 0:00:31]} 42. Kf2 {[%emt 0:03:03]} (42. Kg2 $11) 42... Rg6 $1 $17 {[%emt 0:00:47]} 43. Rxa7 {[%emt 0:02:09]} Rxh6 {[%emt 0:00:11]} 44. Ra5+ {[%emt 0:01:12]} Kf6 {[%emt 0:00:47]} 45. Kf3 {[%emt 0:05:35]} e5 {[%emt 0:06:11]} 46. Rb5 {[%emt 0:02:22]} Rg6 {[%emt 0:00:47]} 47. Rb8 {[%emt 0:03:03]} Rg7 {[%emt 0:02:36]} 48. Rf8+ {[%emt 0:02:00]} Rf7 {[%emt 0:00:14]} 49. Rh8 {[%emt 0:02:50]} Ke6 {[%emt 0:56:14]} (49... Ra7 $17) 50. Re8+ {[%emt 0:02:58]} (50. g4 $11 {keeps the balance.}) 50... Re7 $17 {[%emt 0:00:00]} 51. Ra8 {[%emt 0:00:28]} Rc7 {[%emt 0:00:00]} 52. Re8+ {[%emt 0:00:36]} Kd6 {[%emt 0:00:00]} 53. Rd8+ {[%emt 0:00:16]} Ke7 {[%emt 0:00:00]} 54. Rd5 {[%emt 0:02:11]} Ke6 {[%emt 0:00:00]} 55. Rd8 {[%emt 0:00:02]} Rc3+ {[%emt 0:00:00]} 56. Kf2 {[%emt 0:00:25]} Rc2+ {[%emt 0:00:00]} 57. Ke3 {[%emt 0:01:12]} Rc3+ {[%emt 0:00:00]} 58. Kf2 {[%emt 0:00:04]} e4 {[%emt 0:00:00]} 59. Re8+ {[%emt 0:01:58]} Kf7 {[%emt 0:00:00]} 60. Re5 {[%emt 0:00:45]} Kf6 $1 {[%emt 0:00:00]} 61. Re8 {[%emt 0:00:26] [#]} Rc2+ {[%emt 0:00:00]} (61... Rc5 $1 $17) 62. Ke3 $1 $11 {[%emt 0:00:41]} Rg2 {[%emt 0:00:00]} 63. Rg8 {[%emt 0:00:23]} (63. Rf8+ $11 {was the only way to keep the balance.} Kg6 64. Rg8+ Kf7 65. Rg5) 63... Kf7 $17 {[%emt 0:00:00]} 64. Rg5 {[%emt 0:00:25]} Ke6 {[%emt 0:00:00]} 65. Rg8 {[%emt 0:01:04]} Kf6 {[%emt 0:00:00]} 66. Rf8+ {[%emt 0:00:42] [#]} Kg5 {[%emt 0:00:00]} ({Black should try} 66... Ke5 $1 $17 67. Re8+ Kf6) 67. Rg8+ $11 {[%emt 0:00:19]} Kh6 {[%emt 0:00:00]} 68. Kf4 {[%emt 0:01:20]} Rf2+ {[%emt 0:00:00]} 69. Ke5 {[%emt 0:03:19]} Kh7 {[%emt 0:00:00]} 70. Rg5 {[%emt 0:00:22]} e3 {[%emt 0:00:00]} 71. Kf6 $1 {[%emt 0:00:21]} e2 {[%emt 0:11:00]} 72. Rg7+ {[%emt 0:00:21]} Kh6 {[%emt 0:00:00]} (72... Kh8 $5 73. Re7 $8 Kg8 $11) 73. Rg6+ {[%emt 0:00:05]} Kh7 {[%emt 0:00:00]} 74. Rg7+ {[%emt 0:00:03]} Kh8 {[%emt 0:00:00]} 75. Re7 {[%emt 0:00:23]} Kg8 {[%emt 0:00:00]} 76. Re3 {[%emt 0:01:43]} Kh7 {[%emt 0:00:00]} 77. Re8 {[%emt 0:00:17]} Rg2 {[%emt 0:00:00]} 78. Kxf5 {[%emt 0:00:09]} Rxg3 {[%emt 0:03:30]} 79. Ke4 $2 {[%emt 0:02:20][%mdl 8192]} (79. Rxe2 $11 Kh8 80. Ke4) 1/2-1/2

[Event "Sardinia World Festival-A 2024"]
[Site "Orosei"]
[Date "2024.04.30"]
[Round "5.11"]
[White "Murzin, Volodar"]
[Black "Olsen, Filip Boe"]
[Result "1-0"]
[ECO "B87"]
[WhiteElo "2632"]
[BlackElo "2440"]
[Annotator "TA"]
[PlyCount "55"]
[EventDate "2024.04.26"]
[EventType "swiss"]
[EventCountry "ITA"]
[SourceTitle "playchess.com"]
[Source "ChessBase"]
[SourceQuality "1"]
[TimeControl "40/5400+30:1800+30"]

{[%evp 15,55,0,0,0,0,0,0,-22,154,147,152,141,271,296,306,287,295,287,290,297,364,359,358,350,350,332,377,375,373,377,359,373,372,386,373,395,437,432,447,464,475,470]} 1. e4 {[%emt 0:01:51]} c5 {[%emt 0:00:14]} 2. Nf3 {[%emt 0:00:16]} d6 {[%emt 0:00:09]} 3. d4 {[%emt 0:00:05]} cxd4 {[%emt 0:00:11]} 4. Nxd4 {[%emt 0:00:06]} Nf6 {[%emt 0:00:20]} 5. Nc3 {[%emt 0:00:07]} a6 {[%emt 0:00:12]} 6. Bc4 {[%emt 0:00:18]} e6 {[%emt 0:00:30]} 7. Bb3 {[%emt 0:00:05]} b5 {[%emt 0:00:45]} 8. a3 {[%emt 0:06:39]} Be7 {[%emt 0:02:16]} 9. Qf3 {[%emt 0:01:01][%cal Oe4e5]} Qc7 {[%emt 0:01:24]} 10. Be3 {[%emt 0:00:49]} O-O {[%emt 0:06:03]} 11. g4 {[%emt 0:06:55][%cal Bg2g4,Bg4g5,Bg5g6,Bg6f7][%mdl 32] The position is equal.} Bb7 $2 {[%emt 0:11:08]} ({Better is} 11... Nfd7 $11) 12. g5 $16 {[%emt 0:00:40]} Nfd7 {[%emt 0:05:04] [#]} 13. g6 $1 {[%emt 0:00:26] White is more active.} Nc5 {[%emt 0:26:00] [#]} (13... fxg6 14. Qh3 (14. Bxe6+ Kh8 $16) 14... Nc5 15. Nxe6 (15. Bxe6+ Nxe6 16. Qxe6+ Kh8 $14) 15... Nxe6 16. Qxe6+ (16. Bxe6+ Kh8 $16) 16... Kh8 17. O-O-O $16) (13... hxg6 $2 14. Nxe6 Qc6 (14... fxe6 15. Bxe6+) 15. Nxf8) (13... Ne5 $16 {was worth a try.} 14. gxf7+ Rxf7) 14. gxf7+ $1 $18 {[%emt 0:02:42]} Rxf7 {[%emt 0:05:23]} 15. Nxe6 {[%emt 0:01:47]} (15. Bxe6 $2 {perishes.} Nxe6 16. Nxe6 Qxc3+ 17. bxc3 Rxf3 $19) 15... Rxf3 {[%emt 0:01:53]} 16. Nxc7+ {[%emt 0:00:08]} Nxb3 {[%emt 0:00:12]} 17. cxb3 {[%emt 0:00:03]} Rxe3+ {[%emt 0:00:58]} 18. fxe3 {[%emt 0:00:02]} Ra7 {[%emt 0:00:19][%cal Ba8a7,Ba7d7,Bd7d8][%mdl 32]} 19. O-O-O {[%emt 0:01:22]} Bc6 {[%emt 0:05:43]} 20. N7d5 {[%emt 0:03:08]} Bg5 {[%emt 0:03:15]} 21. h4 {[%emt 0:00:44]} Bd8 {[%emt 0:00:59]} 22. Nb4 {[%emt 0:03:16][%cal Ob4c6] aiming for Nxc6!} Rd7 {[%emt 0:03:37]} 23. Nxc6 {[%emt 0:00:53]} Nxc6 {[%emt 0:00:03]} 24. Nd5 {[%emt 0:01:08]} Ne5 {[%emt 0:01:53]} 25. h5 {[%emt 0:04:32]} Bg5 {[%emt 0:00:53]} 26. Kb1 {[%emt 0:00:47] White is clearly winning.} h6 {[%emt 0:00:44]} 27. Rc1 {[%emt 0:08:12]} Rd8 {[%emt 0:04:02]} 28. Rhf1 {[%emt 0:04:04] White took control after the opening.   Weighted Error Value: White=0.01 (flawless) /Black=0.35.  Mistake:       	---       	Black=2      OK:         	White=10    	Black=8      Best:        	White=2     	---        Strong:       	White=2     	---} 1-0

[Event "Sardinia World Festival-A 2024"]
[Site "Orosei"]
[Date "2024.04.30"]
[Round "5.12"]
[White "Huschenbeth, Niclas"]
[Black "Aizenberg, Benny"]
[Result "0-1"]
[ECO "B30"]
[WhiteElo "2607"]
[BlackElo "2409"]
[Annotator "TA"]
[PlyCount "48"]
[EventDate "2024.04.26"]
[EventType "swiss"]
[EventCountry "ITA"]
[SourceTitle "playchess.com"]
[Source "ChessBase"]
[SourceQuality "1"]
[TimeControl "40/5400+30:1800+30"]

{[%evp 9,48,9,10,0,0,0,0,8,16,30,27,0,0,0,0,0,0,-67,-66,-93,-82,-57,-43,-64,-18,0,0,-196,0,0,37,-254,-267,-367,-367,-504,-533,-675,-673,-657,-649]} 1. e4 {[%emt 0:03:21]} c5 {[%emt 0:00:05]} 2. Nf3 {[%emt 0:00:10]} Nc6 {[%emt 0:00:05]} 3. Bb5 {[%emt 0:00:06]} e6 {[%emt 0:00:05]} 4. c3 {[%emt 0:00:05]} Nge7 {[%emt 0:00:41]} 5. d4 {[%emt 0:02:05]} cxd4 {[%emt 0:00:55]} 6. cxd4 {[%emt 0:00:35]} d5 {[%emt 0:00:05]} 7. e5 {[%emt 0:02:10]} Nf5 {[%emt 0:02:04]} 8. Nc3 {[%emt 0:05:45] The position is equal.} Be7 {[%emt 0:03:44]} 9. O-O {[%emt 0:06:01]} O-O {[%emt 0:05:12]} 10. g4 {[%emt 0:18:47]} Nh4 {[%emt 0:00:21]} 11. Nxh4 {[%emt 0:00:11]} Bxh4 {[%emt 0:00:05]} 12. f4 {[%emt 0:00:45]} f6 {[%emt 0:09:32]} 13. Bxc6 {[%emt 0:19:22]} (13. Be3 $11) 13... bxc6 $15 {[%emt 0:00:07]} 14. Be3 {[%emt 0:00:09]} Ba6 {[%emt 0:14:09]} 15. Rf3 {[%emt 0:00:24]} fxe5 {[%emt 0:00:07]} 16. dxe5 {[%emt 0:00:41]} Be7 {[%emt 0:01:17]} (16... Rb8 $15 17. Qa4 Bc8) 17. Na4 $1 $11 {[%emt 0:05:08]} Rb8 {[%emt 0:03:18]} 18. a3 $2 {[%emt 0:09:57] [#]} (18. Nc5 $11 {and White stays safe.} Bc8 19. b3) 18... Bc4 $2 {[%emt 0:12:38]} (18... Rb5 $1 $19 {Hoping for ...c5.} 19. f5 c5) 19. Bxa7 {[%emt 0:07:08]} Ra8 {[%emt 0:01:21]} (19... Rb7 $5 20. Bd4 Qe8 $11) 20. Bf2 {[%emt 0:03:29][%mdl 8192] [#] This costs White the game.} (20. Bd4 $1 $14 {stays ahead.}) 20... d4 $1 $19 {[%emt 0:00:59][%mdl 512]} 21. b4 {[%emt 0:04:20]} (21. Rc1 Bd5) 21... Bd5 {[%emt 0:02:14] ...Rxa4 is the strong threat. A strong pair of Bishops.} 22. Rd3 {[%emt 0:00:07]} Rxf4 {[%emt 0:00:07][%cal Oh7h5] Black is clearly winning.} 23. Rxd4 {[%emt 0:02:49]} Rxd4 {[%emt 0:01:24]} 24. Bxd4 {[%emt 0:00:09] [#]} Bf3 $1 {[%emt 0:00:06][%mdl 512] Weighted Error Value: White=0.70/Black=0.19 (very precise) .  Loses game:     	White=2     	---        Missed win:     	---       	Black=1      Mistake:       	White=1     	Black=1      Inaccurate:     	White=4     	Black=1      OK:         	White=5     	Black=6      Best:        	---       	Black=1      Strong:       	White=1     	---        Brilliant:      	---       	Black=1} 0-1

[Event "Sardinia World Festival-A 2024"]
[Site "Orosei"]
[Date "2024.04.30"]
[Round "5.13"]
[White "Lewtak, Damian"]
[Black "Sivuk, Vitaly"]
[Result "0-1"]
[ECO "E14"]
[WhiteElo "2343"]
[BlackElo "2551"]
[Annotator "TA"]
[PlyCount "86"]
[EventDate "2024.04.26"]
[EventType "swiss"]
[EventCountry "ITA"]
[SourceTitle "playchess.com"]
[Source "ChessBase"]
[SourceQuality "1"]
[TimeControl "40/5400+30:1800+30"]

{[%evp 11,86,-5,0,0,6,12,9,0,1,-24,-25,-33,-9,-37,-32,-36,-10,-16,-10,-7,-7,-13,-14,-12,-13,-25,-23,-18,-22,-22,-13,-27,-8,-25,-11,-23,0,-14,1,6,25,1,11,-11,-4,-240,-233,-252,-264,-268,-258,-279,-170,-183,-175,-158,-166,-182,-179,-310,-312,-304,-325,-307,-315,-285,-304,-708,-706,-682,-651,-29978,-29979,-29977,-29978,-5297,-246]} 1. Nf3 {[%emt 0:00:02]} Nf6 {[%emt 0:00:29]} 2. c4 {[%emt 0:00:12]} b6 {[%emt 0:00:17]} 3. Nc3 {[%emt 0:01:05]} Bb7 {[%emt 0:00:15]} 4. d4 {[%emt 0:00:41]} e6 {[%emt 0:00:12]} 5. e3 {[%emt 0:00:45]} d5 {[%emt 0:04:16]} 6. cxd5 {[%emt 0:00:31]} exd5 {[%emt 0:00:10]} 7. Qc2 {[%emt 0:01:46] E14: Queen's Indian: Classical Variation (4 e3).} Bd6 {[%emt 0:06:33]} 8. Nb5 {[%emt 0:02:21]} O-O {[%emt 0:00:27]} 9. Nxd6 {[%emt 0:01:15]} Qxd6 $146 {[%emt 0:00:10]} ({Predecessor:} 9... cxd6 10. Bd3 Nc6 11. Bd2 Rc8 12. Qa4 Qd7 13. O-O Rfd8 14. Rfc1 Ne4 15. Be1 Rc7 {1-0 Andreikin,D (2724)-Sarana,A (2640) Bryansk Zilberstein Memorial 5th rapid 2021 (8)}) 10. a4 {[%emt 0:00:47]} Nc6 {[%emt 0:05:00]} 11. Be2 {[%emt 0:03:08]} Nb4 {[%emt 0:01:00]} 12. Qb1 {[%emt 0:00:34]} a5 {[%emt 0:00:46]} 13. O-O {[%emt 0:01:09]} Rfe8 {[%emt 0:02:29]} 14. Bd2 {[%emt 0:02:28]} Ne4 {[%emt 0:00:46]} 15. Bxb4 {[%emt 0:01:58]} axb4 {[%emt 0:00:18]} 16. Qc2 {[%emt 0:00:41]} c5 {[%emt 0:03:17]} 17. dxc5 {[%emt 0:04:51]} bxc5 {[%emt 0:00:22]} 18. Nd2 {[%emt 0:05:14]} Ng5 {[%emt 0:06:02]} 19. Nf3 {[%emt 0:00:41]} Ne6 {[%emt 0:00:37]} 20. Rfd1 {[%emt 0:02:51]} g6 {[%emt 0:08:52]} 21. b3 {[%emt 0:05:15]} Qe7 {[%emt 0:03:42][%cal Od5d4]} 22. Bb5 {[%emt 0:06:03]} Red8 {[%emt 0:02:21]} 23. Qe2 {[%emt 0:01:21]} Qf6 {[%emt 0:02:23]} 24. Rac1 {[%emt 0:01:53]} Ra7 {[%emt 0:09:39]} 25. Ne1 {[%emt 0:04:05]} Ba8 {[%emt 0:02:09]} 26. Nd3 {[%emt 0:05:14]} Rc7 {[%emt 0:03:41]} 27. Rd2 {[%emt 0:05:44]} Qg5 {[%emt 0:05:21][%cal Oc5c4]} (27... Qe7 {simplifies} 28. h3 Qd6 29. f4 Ng7) 28. Rdc2 $2 {[%emt 0:09:03]} (28. f4 $11 Qf6 29. Ne5) 28... c4 $1 $19 {[%emt 0:10:38]} 29. Nxb4 {[%emt 0:04:44][%cal Rb3c4] [#]} d4 $1 {[%emt 0:00:20][%csl Ga8][%cal Rg5g2]} 30. f4 {[%emt 0:00:36]} (30. Rxc4 $2 Qxg2#) 30... Qe7 {[%emt 0:00:16]} 31. Rxc4 {[%emt 0:04:19]} Nxf4 {[%emt 0:00:42]} 32. Qf2 {[%emt 0:00:56]} Rxc4 {[%emt 0:01:39]} 33. Bxc4 {[%emt 0:01:21]} (33. Rxc4 dxe3 (33... Nxg2 $2 34. Rxd4 Rxd4 35. exd4 $19) 34. Rc6 exf2+ 35. Kxf2 Rd2+ (35... Qxb4 36. h3 Qd2+ 37. Kf3 Rd4 38. Be2 Qxe2+ 39. Kg3 Qxg2+ 40. Kh4 Nxh3#) 36. Kf1 Qe3 (36... Qxb4 37. Rc8+ Kg7 38. Rxa8 Qe4 39. Rg8+ Kxg8 40. Be2 Qxe2+ 41. Kg1 Qxg2#) (36... Rd1+ 37. Kf2) 37. Rc8+ Kg7) 33... Nxg2 {[%emt 0:02:17]} (33... dxe3 $2 {is the wrong capture.} 34. Qxf4 Qb7 35. Qg5 $18 (35. Nc6 Qxc6 36. Qxf7+ Kh8 $16)) (33... Qxe3 34. Re1 Qxf2+ 35. Kxf2 Nxg2 36. Re7 $15) 34. exd4 {[%emt 0:04:39][%cal Oc1f1]} Nh4 $1 {[%emt 0:01:29] White must now prevent ...Qg5+.} 35. Rc3 {[%emt 0:02:27]} (35. Qf4 {was called for.}) 35... Nf5 $1 $19 {[%emt 0:06:16]} (35... Qxb4 36. Qxf7+ Kh8 37. Qf6#) 36. Nc2 {[%emt 0:00:53]} Qg5+ {[%emt 0:01:25]} 37. Kf1 {[%emt 0:01:10][%cal Oh2h4] [#]} Bg2+ $1 {[%emt 0:06:45][%mdl 512]} 38. Ke2 {[%emt 0:08:33][%cal Oc3e3] [#]} (38. Qxg2 Qc1+) 38... Qc1 $1 {[%emt 0:02:10] ( -> ...Re8+)} 39. Bxf7+ $2 {[%emt 0:07:00]} (39. Qxg2 Re8+ 40. Be6 (40. Kd3 $2 {is a self mate.} Qd1+ 41. Qd2 Qf1+) 40... Nxd4+ (40... fxe6 41. Qc6 $16) (40... Rxe6+ $2 41. Kd3 $19) 41. Nxd4 Qxc3 42. Qe4) 39... Kxf7 $19 {[%emt 0:00:39]} 40. Rc7+ {[%emt 0:00:06]} Kg8 {[%emt 0:01:31]} 41. Qxg2 {[%emt 0:02:15] aiming for Qc6.} Nxd4+ {[%emt 0:01:38]} 42. Nxd4 {[%emt 0:00:54]} Re8+ {[%emt 0:00:54]} 43. Kf3 {[%emt 0:00:23]} Qe3+ {[%emt 0:00:42]} 0-1

[Event "Sardinia World Festival-A 2024"]
[Site "Orosei"]
[Date "2024.04.30"]
[Round "5.14"]
[White "Sokolovsky, Yahli"]
[Black "Ibrayev, Nurlan"]
[Result "1-0"]
[ECO "C92"]
[WhiteElo "2490"]
[BlackElo "2368"]
[Annotator "TA"]
[PlyCount "67"]
[EventDate "2024.04.26"]
[EventType "swiss"]
[EventCountry "ITA"]
[SourceTitle "playchess.com"]
[Source "ChessBase"]
[SourceQuality "1"]
[TimeControl "40/5400+30:1800+30"]

{[%evp 38,67,21,6,81,105,113,54,190,187,391,383,376,355,364,308,316,285,611,602,608,600,558,470,461,456,453,450,1029,825,1214,1202]} 1. e4 {[%emt 0:00:02]} e5 {[%emt 0:03:50]} 2. Nf3 {[%emt 0:00:08]} Nc6 {[%emt 0:00:03]} 3. Bb5 {[%emt 0:00:07]} a6 {[%emt 0:02:27]} 4. Ba4 {[%emt 0:00:04]} Nf6 {[%emt 0:00:43]} 5. O-O {[%emt 0:00:05]} Be7 {[%emt 0:03:09]} 6. Re1 {[%emt 0:00:07]} b5 {[%emt 0:00:09]} 7. Bb3 {[%emt 0:00:03]} d6 {[%emt 0:00:15]} 8. c3 {[%emt 0:00:04]} O-O {[%emt 0:00:12]} 9. h3 {[%emt 0:00:03]} Bb7 {[%emt 0:03:55]} 10. d4 {[%emt 0:00:09]} Re8 {[%emt 0:00:21]} 11. Ng5 {[%emt 0:00:13]} Rf8 {[%emt 0:00:06]} 12. Nf3 {[%emt 0:00:04]} Re8 {[%emt 0:00:07]} 13. Nbd2 {[%emt 0:00:46]} Bf8 {[%emt 0:00:06]} 14. a4 {[%emt 0:00:10]} h6 {[%emt 0:01:23]} 15. Bc2 {[%emt 0:00:06]} exd4 {[%emt 0:01:30]} 16. cxd4 {[%emt 0:00:05]} Nb4 {[%emt 0:00:03]} 17. Bb1 {[%emt 0:00:07]} c5 {[%emt 0:00:11][%cal Bc7c5,Bc5c4,Bc4d3][%mdl 32]} 18. d5 {[%emt 0:00:02]} Nd7 {[%emt 0:04:39]} 19. Ra3 {[%emt 0:00:07]} c4 {[%emt 0:07:43]} 20. Nd4 {[%emt 0:00:07]} Qb6 {[%emt 0:01:45] [#]} (20... Qf6 $11 {keeps the balance.} 21. N2f3 Nc5) 21. Nf5 $1 $16 {[%emt 0:04:47] aiming for axb5.} g6 {[%emt 0:00:26]} 22. Rg3 {[%emt 0:02:44]} (22. Nf1 $1 $16) 22... Kh7 {[%emt 0:00:59] This costs Black the game.} (22... Nc5 $1 $14) 23. Nf3 $1 $18 {[%emt 0:03:18][%cal Od1d2] Threatens to win with Qd2!} Nd3 $2 {[%emt 0:12:06]} (23... Ne5 {was necessary.}) 24. Bxd3 {[%emt 0:00:36]} cxd3 {[%emt 0:00:02] [#]} 25. Qd2 $1 {[%emt 0:10:31]} Rac8 {[%emt 0:05:08] [#]} (25... gxf5 26. Ng5+ (26. Qf4 Re7 $18) 26... Kg7 (26... hxg5 27. Qxg5) 27. Qf4 $18) 26. Qf4 $1 {[%emt 0:02:59][%cal Rf5h6]} Ne5 {[%emt 0:05:23]} (26... Rxc1 27. Rxc1) 27. Be3 {[%emt 0:07:21]} (27. Nxh6 Rxc1 (27... bxa4 28. Ng5+ Kh8 29. Nhxf7+ Kg8 30. Qh4 $18) 28. Ng5+ Kxh6 $15) 27... Qa5 {[%emt 0:01:26]} (27... d2 28. Rd1 (28. Bxb6 $2 Nxf3+ 29. Qxf3 dxe1=Q+ $19) (28. Bxd2 Nd3 $14) (28. Nxd2 g5 $18) 28... Qa5) 28. Bd2 {[%emt 0:00:56] White is clearly winning.} (28. Nxh6 Nxf3+ (28... bxa4 $2 {is the wrong capture.} 29. Nxe5 Bxd5 30. exd5 $18) 29. Qxf3 Qxe1+ $14) 28... Nxf3+ {[%emt 0:05:33]} 29. gxf3 {[%emt 0:16:52]} Qc7 {[%emt 0:22:23]} 30. Rc1 {[%emt 0:01:05]} Qd7 {[%emt 0:02:55] Black is weak on the dark squares} 31. Rxc8 {[%emt 0:00:59]} ({Don't take} 31. Nxh6 Rxc1+ 32. Bxc1 Rc8 $18) 31... Rxc8 {[%emt 0:12:39]} 32. Nxh6 {[%emt 0:00:06]} Rc7 {[%emt 0:00:25]} (32... Bxd5 $142 33. exd5 Rc4 34. Qxf7+ Qxf7 35. Nxf7 bxa4 36. Ng5+ Kg8) 33. axb5 {[%emt 0:04:25] Hoping for b6.} axb5 {[%emt 0:00:56]} 34. Rg4 {[%emt 0:00:02] Weighted Error Value: White=0.21 (precise) /Black=0.92.  Mistake:       	White=1     	Black=4      Inaccurate:     	---       	Black=1      OK:         	White=4     	Black=1      Best:        	White=1     	---        Strong:       	White=3     	---} 1-0